Workbook

Sheet EFE
A1: Instituto Municipal de Planeación de Irapuato, Gto. Estado de Flujos de Efectivo Del 1 de Enero al 31 de Diciembre de 2025 (Cifras en Pesos)
A2: Concepto | B2: 2025 | C2: 2024
A3: Flujos de Efectivo de las Actividades de Operación
A4: Origen | B4: =SUM(B5:B14) -> 29,060,265 | C4: =SUM(C5:C14) -> 17,450,895
A5: Impuestos | B5: 0 | C5: 0
A6: Cuotas y Aportaciones de Seguridad Social | B6: 0 | C6: 0
A7: Contribuciones de Mejoras | B7: 0 | C7: 0
A8: Derechos | B8: 0 | C8: 0
A9: Productos | B9: 0 | C9: 0
A10: Aprovechamientos | B10: 0 | C10: 0
A11: Ingresos por Venta de Bienes y Prestación de Servicios | B11: 0 | C11: 0
A12: Participaciones, Aportaciones, Convenios, Incentivos Derivados de la Colaboración Fiscal y Fondos Distintos de Aportaciones | B12: 0 | C12: 0
A13: Transferencias, Asignaciones, Subsidios y Subvenciones, y Pensiones y Jubilaciones | B13: 29,060,264 | C13: 17,450,895
A14: Otros Orígenes de Operación | B14: 0 | C14: 0
A16: Aplicación | B16: =SUM(B17:B32) -> 22,521,574 | C16: =SUM(C17:C32) -> 9,053,575
A17: Servicios Personales | B17: 7,980,086 | C17: 5,781,643
A18: Materiales y Suministros | B18: 313,609 | C18: 185,825
A19: Servicios Generales | B19: 14,227,879 | C19: 3,086,107
A20: Transferencias Internas y Asignaciones al Sector Público | B20: 0 | C20: 0
A21: Transferencias al Resto del Sector Público | B21: 0 | C21: 0
A22: Subsidios y Subvenciones | B22: 0 | C22: 0
A23: Ayudas Sociales | B23: 0 | C23: 0
A24: Pensiones y Jubilaciones | B24: 0 | C24: 0
A25: Transferencias a Fideicomisos, Mandatos y Contratos Análogos | B25: 0 | C25: 0
A26: Transferencias a la Seguridad Social | B26: 0 | C26: 0
A27: Donativos | B27: 0 | C27: 0
A28: Transferencias al Exterior | B28: 0 | C28: 0
A29: Participaciones | B29: 0 | C29: 0
A30: Aportaciones | B30: 0 | C30: 0
A31: Convenios | B31: 0 | C31: 0
A32: Otras Aplicaciones de Operación | B32: 0 | C32: 0
A33: Flujos Netos de Efectivo por Actividades de Operación | B33: =B4-B16 -> 6,538,691 | C33: =C4-C16 -> 8,397,320
A35: Flujos de Efectivo de las Actividades de Inversión
A36: Origen | B36: =SUM(B37:B39) -> 0 | C36: =SUM(C37:C39) -> 0
A37: Bienes Inmuebles, Infraestructura y Construcciones en Proceso | B37: 0 | C37: 0
A38: Bienes Muebles | B38: 0 | C38: 0
A39: Otros Orígenes de Inversión | B39: 0 | C39: 0
A41: Aplicación | B41: =SUM(B42:B44) -> 908,845 | C41: =SUM(C42:C44) -> 921,076
A42: Bienes Inmuebles, Infraestructura y Construcciones en Proceso | B42: 0 | C42: 0
A43: Bienes Muebles | B43: 908,845 | C43: 921,076
A44: Otras Aplicaciones de Inversión | B44: 0 | C44: 0
A45: Flujos Netos de Efectivo por Actividades de Inversión | B45: =B36-B41 -> -908,845 | C45: =C36-C41 -> -921,076
A47: Flujos de Efectivo de las Actividades de Financiamiento
A48: Origen | B48: =SUM(B49+B52) -> 0 | C48: =SUM(C49+C52) -> 0
A49: Endeudamiento Neto | B49: =B50+B51 -> 0 | C49: =C50+C51 -> 0
A50: Interno | B50: 0 | C50: 0
A51: Externo | B51: 0 | C51: 0
A52: Otros Orígenes de Financiamiento | B52: 0 | C52: 0
A54: Aplicación | B54: =SUM(B55+B58) -> 4,086,804 | C54: =SUM(C55+C58) -> 259,079
A55: Servicios de la Deuda | B55: =SUM(B56+B57) -> 0 | C55: =SUM(C56+C57) -> 0
A56: Interno | B56: 0 | C56: 0
A57: Externo | B57: 0 | C57: 0
A58: Otras Aplicaciones de Financiamiento | B58: 4,086,804 | C58: 259,079
A59: Flujos Netos de Efectivo por Actividades de Financiamiento | B59: =B48-B54 -> -4,086,804 | C59: =C48-C54 -> -259,079
A61: Incremento/Disminución Neta en el Efectivo y Equivalentes al Efectivo | B61: =B59+B45+B33 -> 1,543,041 | C61: =C59+C45+C33 -> 7,217,165
A63: Efectivo y Equivalentes al Efectivo al Inicio del Ejercicio | B63: 8,480,863 | C63: 1,263,698
A65: Efectivo y Equivalentes al Efectivo al Final del Ejercicio | B65: =+B61+B63 -> 10,023,905 | C65: =+C61+C63 -> 8,480,863
A68: Bajo protesta de decir verdad declaramos que los Estados Financieros y sus notas, son razonablemente correctos y son responsabilidad del emisor.
